fUSD/lending_fUSD_20260512
["ID","MTS","AMOUNT","RATE_DAILY","PERIOD"]
[422075957,1778551856000,-151.0,0.00041128,120]
[422075958,1778551856000,-151.0,0.00041128,120]
[422075959,1778551856000,-319.65253,0.00041128,120]
[422075961,1778551856000,-319.65253,0.00041128,120]
[422075954,1778551856000,-408.322405,0.00041128,120]
[422075962,1778551856000,-319.65253,0.00041128,120]
[422075960,1778551856000,-319.65253,0.00041128,120]
[422075949,1778551856000,-408.322405,0.00041128,120]
[422075970,1778551856000,-863.05,0.00041128,10]
[422075964,1778551856000,-2000.0,0.00041128,120]
[422075969,1778551856000,-157.0,0.00041128,120]
[422075976,1778551856000,-34772.02571038,0.00041136,30]
[422075965,1778551856000,-1826.89923661,0.00041128,120]
[422075974,1778551856000,-255.202259,0.00041135,120]
[422075966,1778551856000,-495.03124294,0.00041128,120]
[422075971,1778551856000,-1503.69,0.00041133,2]
[422075973,1778551856000,-255.202259,0.00041135,120]
[422075972,1778551856000,-255.202259,0.00041135,120]
[422075975,1778551856000,-255.202266,0.00041135,120]
[422075968,1778551856000,-151.0,0.00041128,120]
[422075918,1778551856000,-159.32118637,0.000411,120]
[422075963,1778551856000,-332.0,0.00041128,120]
[422075948,1778551856000,-408.322405,0.00041128,120]
[422075967,1778551856000,-161.0,0.00041128,120]
[422075945,1778551856000,-151.0,0.00041127,120]
[422075921,1778551856000,-159.32118637,0.000411,120]
[422075951,1778551856000,-408.322405,0.00041128,120]
[422075920,1778551856000,-159.32118637,0.000411,120]
[422075922,1778551856000,-159.32118637,0.000411,120]
[422075923,1778551856000,-159.32118637,0.000411,120]
[422075924,1778551856000,-159.32118637,0.000411,120]
[422075927,1778551856000,-159.32,0.000411,120]
[422075926,1778551856000,-159.32118637,0.000411,120]
[422075928,1778551856000,-174.02920014,0.000411,30]
[422075929,1778551856000,-161.0,0.000411,120]
[422075931,1778551856000,-20735.85577013,0.00041111,120]
[422075932,1778551856000,-767.26218527,0.00041112,30]
[422075934,1778551856000,-169.39703048,0.00041112,120]
[422075925,1778551856000,-159.32118637,0.000411,120]
[422075938,1778551856000,-22500.0,0.00041125,120]
[422075944,1778551856000,-151.0,0.00041127,120]
[422075930,1778551856000,-237.70895385,0.00041108,120]
[422075947,1778551856000,-151.0,0.00041128,120]
[422075942,1778551856000,-408.322405,0.00041127,120]
[422075946,1778551856000,-151.0,0.00041128,120]
[422075940,1778551856000,-408.322405,0.00041127,120]
[422075941,1778551856000,-408.322405,0.00041127,120]
[422075943,1778551856000,-408.322405,0.00041127,120]
[422075939,1778551856000,-151.0,0.00041127,120]
[422075936,1778551856000,-330.0,0.00041119,90]
[422075933,1778551856000,-304.56561528,0.00041112,120]
[422075937,1778551856000,-381.0,0.0004112,120]
[422075935,1778551856000,-240.77,0.00041112,2]
[422075999,1778551857000,-50000.0,0.00041234,61]
[422076001,1778551857000,-50000.0,0.00041234,64]
[422075997,1778551857000,-270.20858214,0.00041234,120]
[422076000,1778551857000,-50000.0,0.00041234,63]
[422076003,1778551857000,-500.0,0.00041234,120]
[422075993,1778551857000,-4510.9654493,0.00041217,2]
[422076008,1778551857000,-500.0,0.00041234,120]
[422076006,1778551857000,-500.0,0.00041234,120]
[422076009,1778551857000,-500.0,0.00041234,120]
[422076004,1778551857000,-500.0,0.00041234,120]
[422076005,1778551857000,-500.0,0.00041234,120]
[422076007,1778551857000,-500.0,0.00041234,120]
[422076010,1778551857000,-500.0,0.00041234,120]
[422075995,1778551857000,-1118.88998761,0.0004123,120]
[422076011,1778551857000,-500.0,0.00041234,120]
[422076002,1778551857000,-500.0,0.00041234,120]
[422075996,1778551857000,-50000.0,0.00041234,62]
[422075980,1778551857000,-157.0,0.00041136,120]
[422075991,1778551857000,-34689.5323824,0.00041217,2]
[422076012,1778551857000,-500.0,0.00041234,120]
[422075977,1778551857000,-34772.02571038,0.00041136,30]
[422075979,1778551857000,-1033.0,0.00041136,120]
[422075978,1778551857000,-302.2930377,0.00041136,120]
[422075983,1778551857000,-293.11538416,0.00041153,112]
[422075981,1778551857000,-154.0,0.00041136,120]
[422075982,1778551857000,-267.0,0.00041141,120]
[422075994,1778551857000,-7524.8149284,0.00041217,2]
[422075986,1778551857000,-2400.0,0.00041187,30]
[422075984,1778551857000,-186.0,0.00041165,120]
[422075988,1778551857000,-260.395,0.000412,13]
[422075987,1778551857000,-516.22911801,0.00041195,2]
[422075990,1778551857000,-501.56870608,0.00041206,2]
[422075992,1778551857000,-155467.6981337,0.00041217,2]
[422075998,1778551857000,-293.63446599,0.00041234,120]
[422075989,1778551857000,-2090.75,0.000412,120]
[422075985,1778551857000,-1118.88998761,0.00041184,120]
[422076013,1778551857000,-500.12186827,0.00041234,120]
[422076014,1778551857000,-50000.0,0.00041234,65]
[422076021,1778551857000,-500.0,0.00041234,120]
[422076037,1778551857000,-532800.96467066,0.00041235,2]
[422076038,1778551857000,-151.0,0.000403,30]
[422076039,1778551857000,-165.344479,0.00041096,120]
[422076040,1778551857000,-319.65253,0.00041235,120]
[422076042,1778551857000,-319.65253,0.00041235,120]
[422076041,1778551857000,-319.65253,0.00041235,120]
[422076045,1778551857000,-250.0,0.00041235,30]
[422076046,1778551857000,-960.99,0.00041235,120]
[422076044,1778551857000,-15278.27,0.00041235,120]
[422076048,1778551857000,-411.25,0.0004125,120]
[422076047,1778551857000,-242.23785866,0.00041244,113]
[422076050,1778551857000,-154.485236,0.00041259,2]
[422076049,1778551857000,-190.79,0.0004125,120]
[422076051,1778551857000,-7448.94268341,0.0004126,7]
[422076015,1778551857000,-50000.0,0.00041234,66]
[422076036,1778551857000,-552.0,0.00041235,120]
[422076035,1778551857000,-230.29835534,0.00041235,2]
[422076043,1778551857000,-319.652535,0.00041235,120]
[422076030,1778551857000,-2000.0,0.00041235,120]
[422076017,1778551857000,-50000.0,0.00041234,68]
[422076034,1778551857000,-152.0,0.00041235,120]
[422076019,1778551857000,-606.15139203,0.00041234,120]
[422076016,1778551857000,-50000.0,0.00041234,67]
[422076020,1778551857000,-500.0,0.00041234,120]
[422076022,1778551857000,-393.0,0.00041234,120]
[422076023,1778551857000,-418.38116749,0.00041234,120]
[422076026,1778551857000,-4096.747999,0.00041234,31]
[422076018,1778551857000,-50000.0,0.00041234,69]
[422076025,1778551857000,-263.28510539,0.00041234,120]
[422076027,1778551857000,-528.7027166,0.00041235,120]
[422076029,1778551857000,-3233.05725687,0.00041235,120]
[422076028,1778551857000,-175.74682945,0.00041235,120]
[422076031,1778551857000,-598.30367606,0.00041235,30]
[422076033,1778551857000,-155.0,0.00041235,120]
[422076032,1778551857000,-152.0,0.00041235,120]
[422076024,1778551857000,-187.20201048,0.00041234,120]
[422076071,1778551858000,-645.6491106,0.0004126,7]
[422076052,1778551858000,-300.0,0.0003719,2]
[422076073,1778551858000,-1118.88998761,0.00041276,120]
[422076077,1778551858000,-15780.14616077,0.00041315,2]
[422076081,1778551858000,-125348.26536735,0.00041315,2]
[422076078,1778551858000,-401.12979529,0.00041315,2]
[422076080,1778551858000,-172274.07954247,0.00041315,2]
[422076083,1778551858000,-52292.179361,0.00041315,2]
[422076089,1778551858000,-1056.28059811,0.00041315,2]
[422076086,1778551858000,-2875.30827399,0.00041315,2]
[422076084,1778551858000,-721.1802054,0.00041315,2]
[422076082,1778551858000,-1210.0,0.00041315,2]
[422076085,1778551858000,-357.32629418,0.00041315,2]
[422076079,1778551858000,-207485.18574924,0.00041315,2]
[422076088,1778551858000,-1559.68808231,0.00041315,2]
[422076093,1778551858000,-2521.66510009,0.00041315,2]
[422076074,1778551858000,-150.11,0.0004128,120]
[422076087,1778551858000,-991.79877833,0.00041315,2]
[422076076,1778551858000,-575825.93876335,0.00041315,2]
[422076054,1778551858000,-151.0,0.00038356,30]
[422076075,1778551858000,-166.43,0.000413,30]
[422076053,1778551858000,-300.0,0.0003719,2]
[422076055,1778551858000,-151.0,0.00038356,30]
[422076065,1778551858000,-151.0,0.00041096,120]
[422076057,1778551858000,-151.0,0.0004,30]
[422076064,1778551858000,-1506.530799,0.00041096,120]
[422076060,1778551858000,-1506.530799,0.00041096,120]
[422076058,1778551858000,-151.0,0.000403,30]
[422076056,1778551858000,-151.0,0.00038591,30]
[422076072,1778551858000,-516.22911801,0.00041262,2]
[422076063,1778551858000,-151.0,0.00041096,120]
[422076059,1778551858000,-151.0,0.00041096,120]
[422076062,1778551858000,-1506.530799,0.00041096,120]
[422076066,1778551858000,-1506.530799,0.00041096,120]
[422076067,1778551858000,-151.0,0.00041096,120]
[422076092,1778551858000,-1527.22907943,0.00041315,2]
[422076068,1778551858000,-1506.530799,0.00041096,120]
[422076069,1778551858000,-151.0,0.00041096,120]
[422076070,1778551858000,-1506.530799,0.00041096,120]
[422076061,1778551858000,-151.0,0.00041096,120]
[422076091,1778551858000,-503.58097594,0.00041315,2]
[422076105,1778551858000,-658.53020115,0.00027397,10]
[422076090,1778551858000,-5327.23888534,0.00041315,2]
[422076117,1778551858000,-1506.530799,0.00041096,120]
[422076120,1778551858000,-1506.530799,0.00041096,120]
[422076121,1778551858000,-1506.530799,0.00041096,120]
[422076122,1778551858000,-1506.530799,0.00041096,120]
[422076123,1778551858000,-151.0,0.00041096,120]
[422076124,1778551858000,-1506.530799,0.00041096,120]
[422076125,1778551858000,-151.0,0.00041096,120]
[422076128,1778551858000,-559.1589451,0.00041315,2]
[422076127,1778551858000,-1068.10774877,0.00041315,2]
[422076126,1778551858000,-12607.0210998,0.00041315,2]
[422076130,1778551858000,-1344.98105642,0.00041315,2]
[422076131,1778551858000,-3513.27416531,0.00041315,2]
[422076134,1778551858000,-766.53472117,0.00041315,2]
[422076129,1778551858000,-9487.8649386,0.00041315,2]
[422076132,1778551858000,-2253.92454979,0.00041315,2]
[422076133,1778551858000,-23523.97964254,0.00041315,2]
[422076094,1778551858000,-2774.80108357,0.00041315,2]
[422076118,1778551858000,-274.625265,0.00041096,120]
[422076115,1778551858000,-157.065728,0.000403,30]
[422076119,1778551858000,-1506.530799,0.00041096,120]
[422076113,1778551858000,-151.0,0.00038591,30]
[422076114,1778551858000,-151.0,0.0004,30]
[422076095,1778551858000,-222224.96057899,0.00041315,2]
[422076098,1778551858000,-255.48636172,0.00041315,2]
[422076100,1778551858000,-1293.4703415,0.00041315,2]
[422076097,1778551858000,-1720.1448858,0.00041315,2]
[422076099,1778551858000,-500.0,0.00041315,2]
[422076101,1778551858000,-46286.13363656,0.00041315,2]
[422076102,1778551858000,-2092.17979885,0.00027397,10]
[422076104,1778551858000,-394.61,0.00026056,7]
[422076096,1778551858000,-155.16155978,0.00041315,2]
[422076107,1778551858000,-180.38278168,0.00029978,2]
[422076116,1778551858000,-151.0,0.00041096,120]
[422076109,1778551858000,-300.0,0.0003719,2]
[422076106,1778551858000,-152.0,0.0002784,7]
[422076108,1778551858000,-138.18121832,0.00029978,2]
[422076110,1778551858000,-1117.45209746,0.0003719,2]
[422076111,1778551858000,-151.0,0.00038356,30]
[422076112,1778551858000,-151.0,0.00038356,30]
[422076103,1778551858000,-394.61,0.00026028,2]
[422076149,1778551859000,-1506.530799,0.00041096,120]
[422076150,1778551859000,-3811.780471,0.00041315,2]
[422076148,1778551859000,-394.61,0.00026085,2]
[422076145,1778551859000,-550.0,0.00041315,2]
[422076144,1778551859000,-15190.04553944,0.00041315,2]
[422076147,1778551859000,-148994.53447561,0.00041315,2]
[422076146,1778551859000,-10995.74046437,0.00041315,2]
[422076140,1778551859000,-587.56193637,0.00041315,2]
[422076142,1778551859000,-3325.52907553,0.00041315,2]
[422076139,1778551859000,-995.17445648,0.00041315,2]
[422076153,1778551859000,-394.61,0.00026172,7]
[422076138,1778551859000,-643.0,0.00041315,2]
[422076137,1778551859000,-5019.12995324,0.00041315,2]
[422076136,1778551859000,-188.7210912,0.00041315,2]
[422076143,1778551859000,-179.80803503,0.00041315,2]
[422076152,1778551859000,-394.61,0.00026143,7]
[422076135,1778551859000,-13182.0978914,0.00041315,2]
[422076155,1778551859000,-394.61,0.00026229,7]
[422076151,1778551859000,-394.61,0.00026114,2]
[422076170,1778551859000,-4196.96687588,0.00041315,2]
[422076168,1778551859000,-151.0,0.00041096,120]
[422076167,1778551859000,-151.0,0.00041096,120]
[422076169,1778551859000,-151.0,0.00041096,120]
[422076166,1778551859000,-151.0,0.00041096,120]
[422076164,1778551859000,-151.0,0.00041096,120]
[422076165,1778551859000,-151.0,0.00041096,120]
[422076141,1778551859000,-686932.68989927,0.00041315,2]
[422076162,1778551859000,-151.0,0.00041096,120]
[422076163,1778551859000,-1506.5308,0.00041096,120]
[422076159,1778551859000,-394.61,0.00026344,7]
[422076158,1778551859000,-394.61,0.00026316,7]
[422076161,1778551859000,-300.0,0.0003719,2]
[422076160,1778551859000,-300.0,0.0003719,2]
[422076157,1778551859000,-394.61,0.00026287,2]
[422076154,1778551859000,-394.61,0.000262,2]
[422076156,1778551859000,-394.61,0.00026258,2]
[422076171,1778551862000,202.30617222,0.00016438,2]
[422076172,1778551872000,3294.2273,0.00013526,2]
[422076173,1778551925000,560.41962495,0.00013761,2]
[422076175,1778551934000,500.0,0.00013761,2]
[422076174,1778551934000,500.0,0.00013761,2]
[422076176,1778551935000,500.0,0.00013761,2]
[422076177,1778551935000,500.0,0.00013761,2]
[422076179,1778551935000,500.0,0.00013761,2]
[422076178,1778551935000,500.0,0.00013761,2]
[422076181,1778551935000,500.0,0.00013761,2]
[422076183,1778551935000,500.0,0.00013761,2]
[422076182,1778551935000,500.0,0.00013761,2]
[422076184,1778551935000,0.01,0.00013761,2]
[422076180,1778551935000,500.0,0.00013761,2]
[422076185,1778552112000,-1000.0,0.00013525,2]
[422076186,1778552113000,-200.0,0.00013525,2]
[422076187,1778552113000,-150.0,0.00013525,2]
[422076191,1778552114000,-1000.0,0.00013526,2]
[422076190,1778552114000,-1000.0,0.00013526,2]
[422076188,1778552114000,-359.28,0.00013526,2]
[422076189,1778552114000,-290.72,0.00013526,2]
[422076193,1778552115000,-1000.0,0.00013526,2]
[422076192,1778552115000,-1000.0,0.00013526,2]
[422076194,1778552116000,-1000.0,0.00013526,2]
[422076195,1778552117000,-1000.0,0.00013526,2]
[422076197,1778552117000,-1000.0,0.00013526,2]
[422076198,1778552117000,-1000.0,0.00013526,2]
[422076196,1778552117000,-1000.0,0.00013526,2]
[422076199,1778552118000,-1000.0,0.00013526,2]
[422076200,1778552119000,-1000.0,0.00013526,2]
[422076201,1778552119000,-1000.0,0.00013526,2]
[422076204,1778552120000,-1000.0,0.00013526,2]
[422076203,1778552120000,-1000.0,0.00013526,2]
[422076202,1778552120000,-1000.0,0.00013526,2]
[422076206,1778552121000,-1000.0,0.00013526,2]
[422076205,1778552121000,-1000.0,0.00013526,2]
[422076208,1778552122000,-1000.0,0.00013526,2]
[422076207,1778552122000,-1000.0,0.00013526,2]
[422076210,1778552123000,-1000.0,0.00013526,2]
[422076209,1778552123000,-1000.0,0.00013526,2]
[422076211,1778552127000,-1000.0,0.00013526,2]
[422076212,1778552127000,-1000.0,0.00013526,2]
[422076213,1778552127000,-1000.0,0.00013526,2]
[422076215,1778552128000,-1000.0,0.00013526,2]
[422076214,1778552128000,-1000.0,0.00013526,2]
[422076218,1778552129000,-1000.0,0.00013526,2]
[422076217,1778552129000,-1000.0,0.00013526,2]
[422076216,1778552129000,-1000.0,0.00013526,2]
[422076221,1778552130000,-1000.0,0.00013526,2]
[422076220,1778552130000,-1000.0,0.00013526,2]
[422076219,1778552130000,-1000.0,0.00013526,2]
[422076222,1778552131000,-1000.0,0.00013526,2]
[422076223,1778552131000,-1000.0,0.00013526,2]
[422076224,1778552132000,-1000.0,0.00013526,2]
[422076226,1778552132000,-1000.0,0.00013526,2]
[422076225,1778552132000,-1000.0,0.00013526,2]
[422076228,1778552133000,-1000.0,0.00013526,2]
[422076227,1778552133000,-1000.0,0.00013526,2]
[422076231,1778552134000,-1000.0,0.00013526,2]
[422076230,1778552134000,-1000.0,0.00013526,2]
[422076229,1778552134000,-1000.0,0.00013526,2]
[422076233,1778552135000,-1000.0,0.00013526,2]
[422076232,1778552135000,-1000.0,0.00013526,2]
[422076236,1778552136000,-1000.0,0.00013526,2]
[422076235,1778552136000,-1000.0,0.00013526,2]
[422076234,1778552136000,-1000.0,0.00013526,2]
[422076237,1778552137000,-1000.0,0.00013526,2]
[422076238,1778552137000,-1000.0,0.00013526,2]
[422076239,1778552137000,-1000.0,0.00013526,2]
[422076241,1778552138000,-1000.0,0.00013526,2]
[422076240,1778552138000,-1000.0,0.00013526,2]
[422076244,1778552139000,-1000.0,0.00013526,2]
[422076243,1778552139000,-1000.0,0.00013526,2]
[422076242,1778552139000,-1000.0,0.00013526,2]
[422076246,1778552140000,-1000.0,0.00013526,2]
[422076245,1778552140000,-1000.0,0.00013526,2]
[422076247,1778552141000,-1000.0,0.00013526,2]
[422076249,1778552141000,-1000.0,0.00013526,2]
[422076248,1778552141000,-1000.0,0.00013526,2]
[422076251,1778552142000,-1000.0,0.00013526,2]
[422076250,1778552142000,-1000.0,0.00013526,2]
[422076252,1778552142000,-1000.0,0.00013526,2]
[422076255,1778552143000,-1000.0,0.00013526,2]
[422076254,1778552143000,-1000.0,0.00013526,2]
[422076253,1778552143000,-1000.0,0.00013526,2]
[422076257,1778552144000,-1000.0,0.00013526,2]
[422076256,1778552144000,-1000.0,0.00013526,2]
[422076259,1778552145000,-1000.0,0.00013526,2]
[422076258,1778552145000,-1000.0,0.00013526,2]
[422076260,1778552148000,-1000.0,0.00013526,2]
[422076261,1778552148000,-1000.0,0.00013526,2]
[422076262,1778552148000,-1000.0,0.00013526,2]
[422076264,1778552149000,-1000.0,0.00013526,2]
[422076263,1778552149000,-1000.0,0.00013526,2]
[422076267,1778552150000,-1000.0,0.00013526,2]
[422076266,1778552150000,-1000.0,0.00013526,2]
[422076265,1778552150000,-1000.0,0.00013526,2]
[422076270,1778552151000,-1000.0,0.00013526,2]
[422076269,1778552151000,-1000.0,0.00013526,2]
[422076268,1778552151000,-1000.0,0.00013526,2]
[422076271,1778552152000,-1000.0,0.00013526,2]
[422076272,1778552152000,-1000.0,0.00013526,2]
[422076273,1778552152000,-1000.0,0.00013526,2]
[422076275,1778552153000,-1000.0,0.00013526,2]
[422076274,1778552153000,-1000.0,0.00013526,2]
[422076276,1778552154000,-1000.0,0.00013526,2]
[422076277,1778552154000,-1000.0,0.00013526,2]
[422076278,1778552154000,-1000.0,0.00013526,2]
[422076280,1778552155000,-1000.0,0.00013526,2]
[422076279,1778552155000,-1000.0,0.00013526,2]
[422076283,1778552156000,-1000.0,0.00013526,2]
[422076282,1778552156000,-1000.0,0.00013526,2]
[422076281,1778552156000,-1000.0,0.00013526,2]
[422076285,1778552157000,-1000.0,0.00013526,2]
[422076284,1778552157000,-1000.0,0.00013526,2]
[422076289,1778552158000,-244.0156,0.00013562,2]
[422076288,1778552158000,-755.9844,0.00013526,2]
[422076287,1778552158000,-1000.0,0.00013526,2]
[422076286,1778552158000,-1000.0,0.00013526,2]
[422076290,1778552159000,-14.35411627,0.00013562,2]
[422076291,1778552159000,-985.64588373,0.00013662,2]
[422076292,1778552159000,-1000.0,0.00013662,2]
[422076294,1778552160000,-1000.0,0.00013662,2]
[422076293,1778552160000,-1000.0,0.00013662,2]
[422076295,1778552170000,-365.65371627,0.00013662,2]
[422076296,1778552315000,-1098.0,0.00013526,2]
[422076297,1778552368000,317.66,0.00027103,120]
[422076298,1778552416000,426.0,0.00026134,120]
[422076299,1778552417000,-162.87,0.00011771,2]
[422076302,1778552417000,-111.18961582,0.00013526,2]
[422076300,1778552417000,-162.87,0.00012366,2]
[422076303,1778552417000,-263.50783151,0.00013526,2]
[422076305,1778552417000,-71.82255267,0.00014,2]
[422076301,1778552417000,-162.87,0.00012962,2]
[422076304,1778552417000,-162.87,0.00013557,2]
[422076306,1778552468000,654.077735,7.945e-05,2]
[422076307,1778552707000,256.0,0.00026946,120]
[422076309,1778552760000,-258.36971629,0.00013428,2]
[422076310,1778552760000,-150.0,0.00013527,2]
[422076312,1778552760000,-123.98028371,0.00013527,2]
[422076311,1778552760000,-300.0,0.00013527,2]
[422076308,1778552760000,-167.65,0.00013347,2]
[422076314,1778552761000,-76.01971629,0.00013527,2]
[422076313,1778552761000,-1000.0,0.00013527,2]
[422076315,1778552762000,-923.98028371,0.00013528,2]
[422076316,1778552762000,-1000.0,0.00013528,2]
[422076317,1778552763000,-1000.0,0.00013528,2]
[422076318,1778552764000,-1000.0,0.00013528,2]
[422076319,1778552765000,-1000.0,0.00013528,2]
[422076320,1778552766000,-1000.0,0.00013528,2]
[422076322,1778552767000,-228.54392781,0.00013528,2]
[422076321,1778552767000,-771.45607219,0.00013528,2]
[422076323,1778552768000,-1000.0,0.00013528,2]
[422076325,1778552769000,-1000.0,0.00013528,2]
[422076324,1778552769000,-1000.0,0.00013528,2]
[422076326,1778552770000,-1000.0,0.00013528,2]
[422076327,1778552771000,-1000.0,0.00013528,2]
[422076328,1778552772000,-1000.0,0.00013528,2]
[422076329,1778552773000,-1000.0,0.00013528,2]
[422076330,1778552774000,-1000.0,0.00013528,2]
[422076331,1778552774000,-1000.0,0.00013528,2]
[422076333,1778552775000,-1000.0,0.00013528,2]
[422076332,1778552775000,-1000.0,0.00013528,2]
[422076336,1778552776000,-1000.0,0.00013528,2]
[422076335,1778552776000,-1000.0,0.00013528,2]
[422076334,1778552776000,-1000.0,0.00013528,2]
[422076338,1778552777000,-1000.0,0.00013528,2]
[422076337,1778552777000,-1000.0,0.00013528,2]
[422076339,1778552778000,-1000.0,0.00013528,2]
[422076341,1778552778000,-1000.0,0.00013528,2]
[422076340,1778552778000,-1000.0,0.00013528,2]
[422076342,1778552779000,-1000.0,0.00013528,2]
[422076344,1778552779000,-1000.0,0.00013528,2]
[422076343,1778552779000,-1000.0,0.00013528,2]
[422076346,1778552780000,-1000.0,0.00013528,2]
[422076345,1778552780000,-1000.0,0.00013528,2]
[422076349,1778552781000,-1000.0,0.00013528,2]
[422076348,1778552781000,-1000.0,0.00013528,2]
[422076347,1778552781000,-1000.0,0.00013528,2]
[422076351,1778552782000,-1000.0,0.00013528,2]
[422076350,1778552782000,-1000.0,0.00013528,2]
[422076352,1778552783000,-1000.0,0.00013528,2]
[422076354,1778552783000,-1000.0,0.00013528,2]
[422076353,1778552783000,-1000.0,0.00013528,2]
[422076356,1778552784000,-1000.0,0.00013528,2]
[422076355,1778552784000,-1000.0,0.00013528,2]
[422076357,1778552784000,-1000.0,0.00013528,2]
[422076360,1778552785000,-1000.0,0.00013528,2]
[422076359,1778552785000,-1000.0,0.00013528,2]
[422076358,1778552785000,-1000.0,0.00013528,2]
[422076362,1778552786000,-1000.0,0.00013528,2]
[422076361,1778552786000,-1000.0,0.00013528,2]
[422076363,1778552787000,-1000.0,0.00013528,2]
[422076365,1778552787000,-1000.0,0.00013528,2]
[422076364,1778552787000,-1000.0,0.00013528,2]
[422076366,1778552788000,-1000.0,0.00013528,2]
[422076368,1778552788000,-1000.0,0.00013528,2]
[422076367,1778552788000,-1000.0,0.00013528,2]
[422076370,1778552789000,-1000.0,0.00013528,2]
[422076369,1778552789000,-1000.0,0.00013528,2]
[422076373,1778552790000,-1000.0,0.00013528,2]
[422076372,1778552790000,-1000.0,0.00013528,2]
[422076371,1778552790000,-1000.0,0.00013528,2]
[422076376,1778552791000,-1000.0,0.00013528,2]
[422076375,1778552791000,-1000.0,0.00013528,2]
[422076374,1778552791000,-1000.0,0.00013528,2]
[422076378,1778552792000,-1000.0,0.00013528,2]
[422076377,1778552792000,-1000.0,0.00013528,2]
[422076380,1778552793000,-1000.0,0.00013528,2]
[422076379,1778552793000,-1000.0,0.00013528,2]
[422076381,1778552794000,-1000.0,0.00013528,2]
[422076382,1778552794000,-1000.0,0.00013528,2]
[422076383,1778552794000,-1000.0,0.00013528,2]
[422076386,1778552795000,-1000.0,0.00013528,2]
[422076385,1778552795000,-1000.0,0.00013528,2]
[422076384,1778552795000,-1000.0,0.00013528,2]
[422076388,1778552796000,-1000.0,0.00013528,2]
[422076387,1778552796000,-1000.0,0.00013528,2]
[422076391,1778552797000,-1000.0,0.00013528,2]
[422076390,1778552797000,-1000.0,0.00013528,2]
[422076389,1778552797000,-1000.0,0.00013528,2]
[422076394,1778552798000,-1000.0,0.00013528,2]
[422076393,1778552798000,-1000.0,0.00013528,2]
[422076392,1778552798000,-1000.0,0.00013528,2]
[422076396,1778552799000,-1000.0,0.00013528,2]
[422076395,1778552799000,-1000.0,0.00013528,2]
[422076397,1778552800000,-1000.0,0.00013528,2]
[422076398,1778552800000,-1000.0,0.00013528,2]
[422076399,1778552801000,-1000.0,0.00013528,2]
[422076401,1778552801000,-1000.0,0.00013528,2]
[422076400,1778552801000,-1000.0,0.00013528,2]
[422076404,1778552802000,-1000.0,0.00013528,2]
[422076403,1778552802000,-1000.0,0.00013528,2]
[422076402,1778552802000,-1000.0,0.00013528,2]
[422076406,1778552803000,-1000.0,0.00013528,2]
[422076405,1778552803000,-1000.0,0.00013528,2]
[422076407,1778552858000,-150.0,0.00013527,2]
[422076408,1778552858000,-9850.0,0.00013528,2]
[422076409,1778552859000,-10000.0,0.00013528,2]
[422076410,1778552863000,-1000.0,0.00013528,2]
[422076412,1778552864000,-1000.0,0.00013528,2]
[422076411,1778552864000,-1000.0,0.00013528,2]
[422076413,1778552866000,-1000.0,0.00013528,2]
[422076414,1778552867000,-1000.0,0.00013528,2]
[422076415,1778552868000,-1000.0,0.00013528,2]
[422076416,1778552884000,-400.0,0.00013528,2]
[422076417,1778552945000,-807.24399453,0.00013528,2]
[422076454,1778553032000,-7277.35998313,0.00016524,2]
[422076446,1778553032000,-150.0,0.00016416,2]
[422076443,1778553032000,-287.0,0.00016251,2]
[422076445,1778553032000,-417.54,0.00016359,2]
[422076444,1778553032000,-1852.42,0.00016357,2]
[422076447,1778553032000,-150.0,0.00016416,2]